[Event "December 19 Early 2023"]
[Site "https://www.chess.com"]
[Date "2023.12.19"]
[Round "1"]
[White "Travadon, Loic"]
[Black "Nanu, Costica-Ciprian"]
[Result "0-1"]
[Board "212"]
[TimeControl "180+1"]
[WhiteFideId "26092131"]
[BlackFideId "1204580"]
[WhiteElo "2406"]
[BlackElo "2485"]
[WhiteTeam "FRA"]
[BlackTeam "ROU"]
[WhiteClock "0:00:11"]
[BlackClock "0:00:13"]

1. e4 {[%clk 0:03:00]}  c5 {[%clk 0:02:56]} 2. Nc3 {[%clk 0:03:00]}  Nc6 {[%clk 0:02:52]} 3. Nf3 {[%clk 0:03:00]}  d6 {[%clk 0:02:50]} 4. d4 {[%clk 0:02:59]}  cxd4 {[%clk 0:02:51]} 5. Nxd4 {[%clk 0:02:59]}  Nf6 {[%clk 0:02:51]} 6. Be2 {[%clk 0:02:58]}  g6 {[%clk 0:02:50]} 7. Be3 {[%clk 0:02:57]}  Bg7 {[%clk 0:02:51]} 8. h4 {[%clk 0:02:57]}  h5 {[%clk 0:02:50]} 9. f3 {[%clk 0:02:56]}  Bd7 {[%clk 0:02:48]} 10. Qd2 {[%clk 0:02:56]}  a6 {[%clk 0:02:48]} 11. Bc4 {[%clk 0:02:56]}  Rc8 {[%clk 0:02:47]} 12. Bb3 {[%clk 0:02:56]}  b5 {[%clk 0:02:47]} 13. O-O-O {[%clk 0:02:51]}  Na5 {[%clk 0:02:46]} 14. Rhe1 {[%clk 0:02:33]}  Nc4 {[%clk 0:02:39]} 15. Bxc4 {[%clk 0:02:33]}  Rxc4 {[%clk 0:02:40]} 16. Nb3 {[%clk 0:02:33]}  a5 {[%clk 0:02:39]} 17. Nd5 {[%clk 0:02:27]}  a4 {[%clk 0:02:29]} 18. Na5 {[%clk 0:02:13]}  Nxd5 {[%clk 0:01:39]} 19. Nxc4 {[%clk 0:02:12]}  Nxe3 {[%clk 0:01:40]} 20. Nxe3 {[%clk 0:02:13]}  a3 {[%clk 0:01:40]} 21. c3 {[%clk 0:02:10]}  b4 {[%clk 0:01:39]} 22. cxb4 {[%clk 0:02:06]}  axb2+ {[%clk 0:01:37]} 23. Kb1 {[%clk 0:02:06]}  O-O {[%clk 0:01:36]} 24. Nc4 {[%clk 0:02:05]}  Be6 {[%clk 0:01:29]} 25. Nxb2 {[%clk 0:02:01]}  Qa8 {[%clk 0:01:30]} 26. Nd3 {[%clk 0:02:01]}  Rb8 {[%clk 0:01:29]} 27. Rc1 {[%clk 0:01:59]}  Qa3 {[%clk 0:01:29]} 28. Rc2 {[%clk 0:01:51]}  d5 {[%clk 0:01:23]} 29. e5 {[%clk 0:01:51]}  Bf5 {[%clk 0:01:23]} 30. Re3 {[%clk 0:01:49]}  d4 {[%clk 0:01:22]} 31. Re4 {[%clk 0:01:43]}  Bxe4 {[%clk 0:01:20]} 32. fxe4 {[%clk 0:01:44]}  e6 {[%clk 0:01:09]} 33. Rb2 {[%clk 0:01:44]}  Qa4 {[%clk 0:01:05]} 34. Qc2 {[%clk 0:01:41]}  Qb5 {[%clk 0:01:03]} 35. a4 {[%clk 0:01:38]}  Qa6 {[%clk 0:00:58]} 36. b5 {[%clk 0:01:38]}  Qa5 {[%clk 0:00:58]} 37. Nb4 {[%clk 0:01:37]}  Ra8 {[%clk 0:00:49]} 38. Nc6 {[%clk 0:01:34]}  Qe1+ {[%clk 0:00:48]} 39. Ka2 {[%clk 0:01:34]}  d3 {[%clk 0:00:48]} 40. Qxd3 {[%clk 0:01:26]}  Rxa4+ {[%clk 0:00:48]} 41. Kb3 {[%clk 0:01:26]}  Rxe4 {[%clk 0:00:47]} 42. Qd8+ {[%clk 0:01:08]}  Kh7 {[%clk 0:00:46]} 43. b6 {[%clk 0:01:08]}  Qe3+ {[%clk 0:00:41]} 44. Ka2 {[%clk 0:01:07]}  Ra4+ {[%clk 0:00:41]} 45. Kb1 {[%clk 0:01:03]}  Qe4+ {[%clk 0:00:39]} 46. Rc2 {[%clk 0:00:56]}  Rc4 {[%clk 0:00:37]} 47. Qd2 {[%clk 0:00:41]}  Qxc6 {[%clk 0:00:36]} 48. Rxc4 {[%clk 0:00:41]}  Qxc4 {[%clk 0:00:37]} 49. Qb2 {[%clk 0:00:41]}  Qf1+ {[%clk 0:00:35]} 50. Ka2 {[%clk 0:00:38]}  Qa6+ {[%clk 0:00:36]} 51. Kb1 {[%clk 0:00:38]}  Qb7 {[%clk 0:00:34]} 52. Qb5 {[%clk 0:00:39]}  Qe4+ {[%clk 0:00:32]} 53. Kc1 {[%clk 0:00:35]}  Bxe5 {[%clk 0:00:32]} 54. b7 {[%clk 0:00:34]}  Bf4+ {[%clk 0:00:30]} 55. Kb2 {[%clk 0:00:34]}  Qxg2+ {[%clk 0:00:30]} 56. Kb3 {[%clk 0:00:34]}  Qf3+ {[%clk 0:00:29]} 57. Ka4 {[%clk 0:00:33]}  Qe4+ {[%clk 0:00:30]} 58. Ka5 {[%clk 0:00:33]}  Bc7+ {[%clk 0:00:30]} 59. Ka6 {[%clk 0:00:31]}  Qd4 {[%clk 0:00:27]} 60. b8=Q {[%clk 0:00:30]}  Qa1+ {[%clk 0:00:26]} 61. Kb7 {[%clk 0:00:30]}  Bxb8 {[%clk 0:00:27]} 62. Kxb8 {[%clk 0:00:31]}  Qf6 {[%clk 0:00:26]} 63. Kc8 {[%clk 0:00:30]}  Qxh4 {[%clk 0:00:26]} 64. Kd7 {[%clk 0:00:30]}  Qf4 {[%clk 0:00:27]} 65. Ke8 {[%clk 0:00:31]}  h4 {[%clk 0:00:27]} 66. Kf8 {[%clk 0:00:31]}  Qf6 {[%clk 0:00:26]} 67. Qc4 {[%clk 0:00:26]}  h3 {[%clk 0:00:25]} 68. Qg4 {[%clk 0:00:25]}  Qg7+ {[%clk 0:00:24]} 69. Ke8 {[%clk 0:00:25]}  h2 {[%clk 0:00:23]} 70. Qg2 {[%clk 0:00:20]}  Qh6 {[%clk 0:00:21]} 71. Qh1 {[%clk 0:00:16]}  g5 {[%clk 0:00:20]} 72. Kxf7 {[%clk 0:00:16]}  Qg6+ {[%clk 0:00:20]} 73. Ke7 {[%clk 0:00:16]}  Qg7+ {[%clk 0:00:19]} 74. Kxe6 {[%clk 0:00:16]}  Qh6+ {[%clk 0:00:20]} 75. Kf5 {[%clk 0:00:16]}  Qg6+ {[%clk 0:00:17]} 76. Kg4 {[%clk 0:00:17]}  Qh6 {[%clk 0:00:16]} 77. Qb7+ {[%clk 0:00:15]}  Qg7 {[%clk 0:00:16]} 78. Qh1 {[%clk 0:00:16]}  Qd4+ {[%clk 0:00:15]} 79. Kxg5 {[%clk 0:00:17]}  Qg1+ {[%clk 0:00:14]} 80. Kh4 {[%clk 0:00:12]}  Qxh1 {[%clk 0:00:14]} 81. Kh5 {[%clk 0:00:11]}  Qg2 {[%clk 0:00:13]} 0-1

[Event "December 19 Early 2023"]
[Site "https://www.chess.com"]
[Date "2023.12.19"]
[Round "1"]
[White "Ismagilov, Damir"]
[Black "Vila Dupla, Aurelio"]
[Result "1-0"]
[Board "213"]
[TimeControl "180+1"]
[WhiteFideId "34199982"]
[BlackFideId "2203383"]
[WhiteElo "2131"]
[BlackElo "2009"]
[WhiteTeam "RUS"]
[BlackTeam "ESP"]
[WhiteClock "0:00:25"]
[BlackClock "0:00:00"]

1. d4 {[%clk 0:03:00]}  Nf6 {[%clk 0:02:57]} 2. c4 {[%clk 0:03:01]}  g6 {[%clk 0:02:57]} 3. Nc3 {[%clk 0:03:00]}  d5 {[%clk 0:02:57]} 4. cxd5 {[%clk 0:02:58]}  Nxd5 {[%clk 0:02:56]} 5. e4 {[%clk 0:02:59]}  Nxc3 {[%clk 0:02:57]} 6. bxc3 {[%clk 0:03:00]}  Bg7 {[%clk 0:02:56]} 7. Qa4+ {[%clk 0:03:01]}  Nd7 {[%clk 0:02:54]} 8. Nf3 {[%clk 0:03:00]}  O-O {[%clk 0:02:54]} 9. Be2 {[%clk 0:02:59]}  Nb6 {[%clk 0:02:29]} 10. Qa3 {[%clk 0:02:52]}  Be6 {[%clk 0:01:40]} 11. O-O {[%clk 0:02:35]}  Bc4 {[%clk 0:01:39]} 12. Bxc4 {[%clk 0:02:30]}  Nxc4 {[%clk 0:01:40]} 13. Qb3 {[%clk 0:02:29]}  Na5 {[%clk 0:01:14]} 14. Qb5 {[%clk 0:02:23]}  c6 {[%clk 0:01:11]} 15. Qe2 {[%clk 0:02:22]}  b5 {[%clk 0:01:10]} 16. h4 {[%clk 0:02:09]}  h5 {[%clk 0:01:08]} 17. Bg5 {[%clk 0:01:29]}  a6 {[%clk 0:01:01]} 18. Rad1 {[%clk 0:01:22]}  Qc7 {[%clk 0:00:52]} 19. Nd2 {[%clk 0:01:17]}  c5 {[%clk 0:00:42]} 20. e5 {[%clk 0:01:03]}  f5 {[%clk 0:00:23]} 21. Nf3 {[%clk 0:00:46]}  e6 {[%clk 0:00:22]} 22. d5 {[%clk 0:00:43]}  exd5 {[%clk 0:00:18]} 23. Rxd5 {[%clk 0:00:44]}  Nc4 {[%clk 0:00:18]} 24. Rfd1 {[%clk 0:00:36]}  Ra7 {[%clk 0:00:17]} 25. e6 {[%clk 0:00:32]}  Re8 {[%clk 0:00:16]} 26. Rd8 {[%clk 0:00:27]}  Rxd8 {[%clk 0:00:15]} 27. Rxd8+ {[%clk 0:00:26]}  Kh7 {[%clk 0:00:00]} 28. e7 {[%clk 0:00:25]} 1-0

[Event "December 19 Early 2023"]
[Site "https://www.chess.com"]
[Date "2023.12.19"]
[Round "1"]
[White "Rose, Felix"]
[Black "Silva, Kaua Marques"]
[Result "1-0"]
[Board "214"]
[TimeControl "180+1"]
[WhiteFideId "5105722"]
[BlackFideId "22701168"]
[WhiteElo "2039"]
[BlackElo "2199"]
[WhiteTeam "MEX"]
[BlackTeam "BRA"]
[WhiteClock "0:00:26"]
[BlackClock "0:00:02"]

1. e4 {[%clk 0:02:59]}  e6 {[%clk 0:02:46]} 2. d4 {[%clk 0:02:59]}  d5 {[%clk 0:02:47]} 3. Nc3 {[%clk 0:03:00]}  Nf6 {[%clk 0:02:35]} 4. e5 {[%clk 0:03:00]}  Nfd7 {[%clk 0:02:25]} 5. f4 {[%clk 0:03:00]}  c5 {[%clk 0:02:26]} 6. Nf3 {[%clk 0:03:01]}  Nc6 {[%clk 0:02:26]} 7. Be3 {[%clk 0:03:01]}  cxd4 {[%clk 0:02:24]} 8. Nxd4 {[%clk 0:03:01]}  Qb6 {[%clk 0:02:24]} 9. Qd2 {[%clk 0:03:01]}  Nxd4 {[%clk 0:02:24]} 10. Bxd4 {[%clk 0:03:00]}  Qxb2 {[%clk 0:02:25]} 11. Rb1 {[%clk 0:03:00]}  Qa3 {[%clk 0:02:25]} 12. Bb5 {[%clk 0:02:58]}  a6 {[%clk 0:02:25]} 13. Bxd7+ {[%clk 0:02:57]}  Bxd7 {[%clk 0:02:26]} 14. Rxb7 {[%clk 0:02:55]}  Be7 {[%clk 0:01:52]} 15. O-O {[%clk 0:02:54]}  Bc8 {[%clk 0:01:38]} 16. Rb3 {[%clk 0:01:50]}  Qa5 {[%clk 0:01:37]} 17. f5 {[%clk 0:01:43]}  exf5 {[%clk 0:01:30]} 18. Qf2 {[%clk 0:01:41]}  O-O {[%clk 0:01:26]} 19. Bb6 {[%clk 0:01:36]}  Qxb6 {[%clk 0:00:47]} 20. Qxb6 {[%clk 0:01:30]}  Be6 {[%clk 0:00:48]} 21. Rd1 {[%clk 0:01:23]}  Rfc8 {[%clk 0:00:48]} 22. Kh1 {[%clk 0:01:17]}  Bc5 {[%clk 0:00:45]} 23. Qb7 {[%clk 0:01:12]}  d4 {[%clk 0:00:46]} 24. Na4 {[%clk 0:01:06]}  Ba7 {[%clk 0:00:34]} 25. Nb6 {[%clk 0:00:43]}  Bxb6 {[%clk 0:00:20]} 26. Rxb6 {[%clk 0:00:41]}  g6 {[%clk 0:00:20]} 27. h3 {[%clk 0:00:38]}  Rd8 {[%clk 0:00:18]} 28. Rxe6 {[%clk 0:00:37]}  fxe6 {[%clk 0:00:18]} 29. Qe7 {[%clk 0:00:38]}  Re8 {[%clk 0:00:18]} 30. Qf6 {[%clk 0:00:38]}  Rad8 {[%clk 0:00:16]} 31. h4 {[%clk 0:00:38]}  Rd7 {[%clk 0:00:15]} 32. Rd3 {[%clk 0:00:36]}  Rf7 {[%clk 0:00:15]} 33. Qg5 {[%clk 0:00:37]}  Rd7 {[%clk 0:00:08]} 34. h5 {[%clk 0:00:36]}  Kg7 {[%clk 0:00:07]} 35. Qf6+ {[%clk 0:00:34]}  Kg8 {[%clk 0:00:07]} 36. h6 {[%clk 0:00:33]}  Rf7 {[%clk 0:00:06]} 37. Qg5 {[%clk 0:00:33]}  Rd7 {[%clk 0:00:06]} 38. c3 {[%clk 0:00:31]}  Red8 {[%clk 0:00:03]} 39. Rxd4 {[%clk 0:00:29]}  Rxd4 {[%clk 0:00:03]} 40. cxd4 {[%clk 0:00:29]}  Rxd4 {[%clk 0:00:02]} 41. Qf6 {[%clk 0:00:26]} 1-0

[Event "December 19 Early 2023"]
[Site "https://www.chess.com"]
[Date "2023.12.19"]
[Round "1"]
[White "Deng, Henry"]
[Black "Papp, Petra"]
[Result "1-0"]
[Board "215"]
[TimeControl "180+1"]
[WhiteFideId "30965454"]
[BlackFideId "739049"]
[WhiteElo "2564"]
[BlackElo "2270"]
[WhiteTeam "USA"]
[BlackTeam "HUN"]
[WhiteClock "0:01:43"]
[BlackClock "0:01:07"]

1. e4 {[%clk 0:03:00]}  c5 {[%clk 0:02:59]} 2. Nc3 {[%clk 0:03:00]}  e6 {[%clk 0:02:59]} 3. d4 {[%clk 0:02:58]}  cxd4 {[%clk 0:02:58]} 4. Qxd4 {[%clk 0:02:59]}  Nc6 {[%clk 0:02:58]} 5. Qe3 {[%clk 0:02:59]}  Nf6 {[%clk 0:02:57]} 6. Nf3 {[%clk 0:02:59]}  Bb4 {[%clk 0:02:56]} 7. Bd2 {[%clk 0:03:00]}  O-O {[%clk 0:02:54]} 8. a3 {[%clk 0:02:56]}  Ba5 {[%clk 0:02:52]} 9. e5 {[%clk 0:02:51]}  Bb6 {[%clk 0:02:49]} 10. Qf4 {[%clk 0:02:48]}  Nd5 {[%clk 0:02:42]} 11. Nxd5 {[%clk 0:02:46]}  exd5 {[%clk 0:02:43]} 12. Bd3 {[%clk 0:02:46]}  Qe7 {[%clk 0:02:39]} 13. O-O {[%clk 0:02:31]}  g6 {[%clk 0:02:33]} 14. Qg3 {[%clk 0:02:27]}  Nd4 {[%clk 0:02:22]} 15. Bg5 {[%clk 0:02:18]}  Nxf3+ {[%clk 0:02:21]} 16. gxf3 {[%clk 0:02:19]}  Qe6 {[%clk 0:02:16]} 17. f4 {[%clk 0:02:17]}  d6 {[%clk 0:02:12]} 18. Bf6 {[%clk 0:02:05]}  dxe5 {[%clk 0:02:08]} 19. fxe5 {[%clk 0:01:57]}  Qg4 {[%clk 0:02:04]} 20. Rad1 {[%clk 0:01:51]}  Be6 {[%clk 0:01:58]} 21. Kg2 {[%clk 0:01:48]}  Qxg3+ {[%clk 0:01:53]} 22. hxg3 {[%clk 0:01:49]}  h5 {[%clk 0:01:51]} 23. f3 {[%clk 0:01:46]}  Rac8 {[%clk 0:01:48]} 24. g4 {[%clk 0:01:46]}  Kh7 {[%clk 0:01:34]} 25. gxh5 {[%clk 0:01:45]}  Bf5 {[%clk 0:01:23]} 26. hxg6+ {[%clk 0:01:44]}  fxg6 {[%clk 0:01:21]} 27. Rh1+ {[%clk 0:01:44]}  Kg8 {[%clk 0:01:21]} 28. Rh8+ {[%clk 0:01:44]}  Kf7 {[%clk 0:01:21]} 29. Rh7+ {[%clk 0:01:45]}  Ke8 {[%clk 0:01:08]} 30. Re7+ {[%clk 0:01:44]}  Kd8 {[%clk 0:01:08]} 31. Bxf5 {[%clk 0:01:45]}  gxf5 {[%clk 0:01:07]} 32. Rxd5# {[%clk 0:01:43]} 1-0

[Event "December 19 Early 2023"]
[Site "https://www.chess.com"]
[Date "2023.12.19"]
[Round "1"]
[White "Putri, Regita Desyari"]
[Black "Koutlas, Nikolaos"]
[Result "0-1"]
[Board "216"]
[TimeControl "180+1"]
[WhiteFideId "7109083"]
[BlackFideId "25827138"]
[WhiteElo "1930"]
[BlackElo "2215"]
[WhiteTeam "INA"]
[BlackTeam "GRE"]
[WhiteClock "0:00:05"]
[BlackClock "0:00:27"]

1. e4 {[%clk 0:02:59]}  c5 {[%clk 0:02:59]} 2. Nf3 {[%clk 0:02:58]}  Nc6 {[%clk 0:03:00]} 3. Bb5 {[%clk 0:02:56]}  h6 {[%clk 0:02:54]} 4. O-O {[%clk 0:02:48]}  g5 {[%clk 0:02:54]} 5. c3 {[%clk 0:02:38]}  Bg7 {[%clk 0:02:51]} 6. h3 {[%clk 0:02:32]}  e5 {[%clk 0:02:46]} 7. Na3 {[%clk 0:02:02]}  Nge7 {[%clk 0:02:42]} 8. d3 {[%clk 0:01:55]}  a6 {[%clk 0:02:38]} 9. Bxc6 {[%clk 0:01:54]}  Nxc6 {[%clk 0:02:36]} 10. Nc4 {[%clk 0:01:54]}  d6 {[%clk 0:02:36]} 11. Ne3 {[%clk 0:01:54]}  O-O {[%clk 0:02:35]} 12. Nd5 {[%clk 0:01:52]}  f5 {[%clk 0:02:35]} 13. exf5 {[%clk 0:01:51]}  Bxf5 {[%clk 0:02:34]} 14. a4 {[%clk 0:01:43]}  Kh8 {[%clk 0:02:31]} 15. Nh2 {[%clk 0:01:39]}  Ne7 {[%clk 0:02:14]} 16. Ne3 {[%clk 0:01:31]}  Be6 {[%clk 0:02:12]} 17. a5 {[%clk 0:01:31]}  d5 {[%clk 0:02:11]} 18. Qe2 {[%clk 0:01:26]}  Nc6 {[%clk 0:02:07]} 19. Neg4 {[%clk 0:01:16]}  Qd6 {[%clk 0:01:56]} 20. Re1 {[%clk 0:01:10]}  Rae8 {[%clk 0:01:54]} 21. Bd2 {[%clk 0:01:03]}  Bf5 {[%clk 0:01:47]} 22. Nf1 {[%clk 0:00:53]}  e4 {[%clk 0:01:44]} 23. dxe4 {[%clk 0:00:47]}  Bxe4 {[%clk 0:01:39]} 24. Qd1 {[%clk 0:00:42]}  Qg6 {[%clk 0:01:30]} 25. Ng3 {[%clk 0:00:38]}  Bc2 {[%clk 0:01:25]} 26. Qc1 {[%clk 0:00:22]}  d4 {[%clk 0:01:25]} 27. Nh2 {[%clk 0:00:09]}  dxc3 {[%clk 0:01:21]} 28. Bxc3 {[%clk 0:00:10]}  Nd4 {[%clk 0:01:20]} 29. Bxd4 {[%clk 0:00:08]}  Bxd4 {[%clk 0:01:20]} 30. Ng4 {[%clk 0:00:04]}  Rxe1+ {[%clk 0:00:40]} 31. Qxe1 {[%clk 0:00:04]}  Bxb2 {[%clk 0:00:41]} 32. Ra2 {[%clk 0:00:03]}  Bd4 {[%clk 0:00:40]} 33. Ne3 {[%clk 0:00:02]}  Bd3 {[%clk 0:00:37]} 34. Rd2 {[%clk 0:00:02]}  Bc3 {[%clk 0:00:36]} 35. Qc1 {[%clk 0:00:02]}  Bxd2 {[%clk 0:00:35]} 36. Qxd2 {[%clk 0:00:03]}  c4 {[%clk 0:00:35]} 37. Qc3+ {[%clk 0:00:03]}  Qf6 {[%clk 0:00:35]} 38. Qb4 {[%clk 0:00:03]}  Qxf2+ {[%clk 0:00:35]} 39. Kh2 {[%clk 0:00:04]}  Kg8 {[%clk 0:00:32]} 40. Nh5 {[%clk 0:00:05]}  Qxe3 {[%clk 0:00:30]} 41. Ng3 {[%clk 0:00:06]}  Qf4 {[%clk 0:00:29]} 42. Qxb7 {[%clk 0:00:06]}  h5 {[%clk 0:00:29]} 43. Qd5+ {[%clk 0:00:07]}  Rf7 {[%clk 0:00:27]} 44. Qe6 {[%clk 0:00:08]}  h4 {[%clk 0:00:27]} 45. Qe8+ {[%clk 0:00:08]}  Kg7 {[%clk 0:00:27]} 46. Qe5+ {[%clk 0:00:05]}  Qxe5 {[%clk 0:00:27]} 0-1

[Event "December 19 Early 2023"]
[Site "https://www.chess.com"]
[Date "2023.12.19"]
[Round "1"]
[White "Stepanencu, Nicodim-Cosmin"]
[Black "Guzman Lozano, Campo Elias"]
[Result "1-0"]
[Board "217"]
[TimeControl "180+1"]
[WhiteFideId "1256220"]
[BlackFideId "4403746"]
[WhiteElo "2154"]
[BlackElo "2099"]
[WhiteTeam "ROU"]
[BlackTeam "COL"]
[WhiteClock "0:01:07"]
[BlackClock "0:01:50"]

1. b3 {[%clk 0:02:53]}  e5 {[%clk 0:02:59]} 2. Bb2 {[%clk 0:02:53]}  Nc6 {[%clk 0:02:59]} 3. e3 {[%clk 0:02:52]}  Nf6 {[%clk 0:02:58]} 4. Nf3 {[%clk 0:02:52]}  Bd6 {[%clk 0:02:56]} 5. Na3 {[%clk 0:02:52]}  O-O {[%clk 0:02:54]} 6. Nc4 {[%clk 0:02:51]}  Re8 {[%clk 0:02:47]} 7. Be2 {[%clk 0:02:41]}  b6 {[%clk 0:02:46]} 8. O-O {[%clk 0:02:36]}  a5 {[%clk 0:02:45]} 9. Nxd6 {[%clk 0:02:32]}  cxd6 {[%clk 0:02:44]} 10. d4 {[%clk 0:02:31]}  e4 {[%clk 0:02:40]} 11. Nd2 {[%clk 0:02:30]}  d5 {[%clk 0:02:40]} 12. c4 {[%clk 0:02:29]}  dxc4 {[%clk 0:02:36]} 13. bxc4 {[%clk 0:02:27]}  d5 {[%clk 0:02:35]} 14. Rc1 {[%clk 0:02:16]}  Nb4 {[%clk 0:02:32]} 15. a3 {[%clk 0:02:16]}  Nd3 {[%clk 0:02:31]} 16. Bxd3 {[%clk 0:02:15]}  exd3 {[%clk 0:02:31]} 17. Qb3 {[%clk 0:02:12]}  dxc4 {[%clk 0:02:30]} 18. Nxc4 {[%clk 0:02:11]}  Bf5 {[%clk 0:02:29]} 19. f3 {[%clk 0:01:57]}  b5 {[%clk 0:02:24]} 20. Ne5 {[%clk 0:01:54]}  Nd5 {[%clk 0:02:11]} 21. e4 {[%clk 0:01:49]}  Ne3 {[%clk 0:02:11]} 22. exf5 {[%clk 0:01:33]}  Rxe5 {[%clk 0:02:04]} 23. dxe5 {[%clk 0:01:29]}  Nxf1 {[%clk 0:02:04]} 24. Rxf1 {[%clk 0:01:27]}  Qb6+ {[%clk 0:02:01]} 25. Kh1 {[%clk 0:01:27]}  Rd8 {[%clk 0:02:01]} 26. e6 {[%clk 0:01:09]}  fxe6 {[%clk 0:01:56]} 27. fxe6 {[%clk 0:01:08]}  Qe3 {[%clk 0:01:50]} 28. e7+ {[%clk 0:01:07]} 1-0

[Event "December 19 Early 2023"]
[Site "https://www.chess.com"]
[Date "2023.12.19"]
[Round "1"]
[White "Polak, Kinga"]
[Black "Tulchynskyi, Feliks"]
[Result "0-1"]
[Board "220"]
[TimeControl "180+1"]
[WhiteFideId "1134680"]
[BlackFideId "34127895"]
[WhiteElo "2075"]
[BlackElo "2131"]
[WhiteTeam "POL"]
[BlackTeam "UKR"]
[WhiteClock "0:00:13"]
[BlackClock "0:00:04"]

1. e4 {[%clk 0:03:00]}  e6 {[%clk 0:02:55]} 2. d4 {[%clk 0:03:00]}  d5 {[%clk 0:02:55]} 3. Nd2 {[%clk 0:03:01]}  c5 {[%clk 0:02:53]} 4. Ngf3 {[%clk 0:03:00]}  Nf6 {[%clk 0:02:51]} 5. exd5 {[%clk 0:03:01]}  Nxd5 {[%clk 0:02:51]} 6. Bb5+ {[%clk 0:02:52]}  Bd7 {[%clk 0:02:49]} 7. Bxd7+ {[%clk 0:02:50]}  Nxd7 {[%clk 0:02:50]} 8. O-O {[%clk 0:02:49]}  Rc8 {[%clk 0:02:47]} 9. c3 {[%clk 0:02:46]}  Be7 {[%clk 0:02:45]} 10. Re1 {[%clk 0:02:42]}  O-O {[%clk 0:02:44]} 11. Nf1 {[%clk 0:02:42]}  cxd4 {[%clk 0:02:29]} 12. Nxd4 {[%clk 0:02:42]}  N7b6 {[%clk 0:02:26]} 13. Ng3 {[%clk 0:02:31]}  g6 {[%clk 0:02:20]} 14. Qf3 {[%clk 0:02:24]}  Bf6 {[%clk 0:02:17]} 15. Bh6 {[%clk 0:02:19]}  Re8 {[%clk 0:02:17]} 16. Rad1 {[%clk 0:02:17]}  Na4 {[%clk 0:02:07]} 17. Bc1 {[%clk 0:02:15]}  Qb6 {[%clk 0:02:01]} 18. Ne4 {[%clk 0:02:13]}  Bg7 {[%clk 0:01:52]} 19. Nb3 {[%clk 0:02:08]}  Qc6 {[%clk 0:01:43]} 20. Ng5 {[%clk 0:02:03]}  Nf6 {[%clk 0:01:22]} 21. Qxc6 {[%clk 0:01:51]}  bxc6 {[%clk 0:01:20]} 22. Ne4 {[%clk 0:01:52]}  Nxe4 {[%clk 0:01:16]} 23. Rxe4 {[%clk 0:01:53]}  Nb6 {[%clk 0:01:16]} 24. a4 {[%clk 0:01:32]}  Red8 {[%clk 0:01:14]} 25. Ree1 {[%clk 0:01:30]}  Nxa4 {[%clk 0:01:09]} 26. Na5 {[%clk 0:01:21]}  Rd5 {[%clk 0:01:01]} 27. Nc4 {[%clk 0:01:17]}  Nb6 {[%clk 0:00:57]} 28. Ne3 {[%clk 0:01:16]}  Rdd8 {[%clk 0:00:56]} 29. f3 {[%clk 0:01:10]}  h5 {[%clk 0:00:55]} 30. Kf2 {[%clk 0:01:11]}  Bh6 {[%clk 0:00:51]} 31. g3 {[%clk 0:01:03]}  Bf8 {[%clk 0:00:42]} 32. f4 {[%clk 0:01:02]}  Bc5 {[%clk 0:00:41]} 33. Kf3 {[%clk 0:01:03]}  Kf8 {[%clk 0:00:38]} 34. h3 {[%clk 0:01:02]}  Ke7 {[%clk 0:00:37]} 35. g4 {[%clk 0:01:01]}  hxg4+ {[%clk 0:00:38]} 36. hxg4 {[%clk 0:01:02]}  Rxd1 {[%clk 0:00:38]} 37. Rxd1 {[%clk 0:01:02]}  Nd5 {[%clk 0:00:38]} 38. Nc4 {[%clk 0:01:00]}  Rh8 {[%clk 0:00:37]} 39. Ne5 {[%clk 0:00:59]}  Rc8 {[%clk 0:00:35]} 40. c4 {[%clk 0:00:57]}  Nb6 {[%clk 0:00:34]} 41. b3 {[%clk 0:00:56]}  Rc7 {[%clk 0:00:21]} 42. Bb2 {[%clk 0:00:55]}  Nd7 {[%clk 0:00:19]} 43. Nxd7 {[%clk 0:00:42]}  Rxd7 {[%clk 0:00:20]} 44. Bf6+ {[%clk 0:00:42]}  Ke8 {[%clk 0:00:18]} 45. Rh1 {[%clk 0:00:43]}  Rd3+ {[%clk 0:00:18]} 46. Ke2 {[%clk 0:00:39]}  Re3+ {[%clk 0:00:18]} 47. Kd2 {[%clk 0:00:40]}  Rxb3 {[%clk 0:00:18]} 48. Rh8+ {[%clk 0:00:39]}  Kd7 {[%clk 0:00:18]} 49. Rd8+ {[%clk 0:00:34]}  Kc7 {[%clk 0:00:19]} 50. Rg8 {[%clk 0:00:28]}  Rg3 {[%clk 0:00:18]} 51. Be5+ {[%clk 0:00:26]}  Kb7 {[%clk 0:00:16]} 52. g5 {[%clk 0:00:23]}  Rg2+ {[%clk 0:00:15]} 53. Kc3 {[%clk 0:00:22]}  Rg3+ {[%clk 0:00:15]} 54. Kc2 {[%clk 0:00:21]}  Rg2+ {[%clk 0:00:15]} 55. Kb3 {[%clk 0:00:22]}  Rd2 {[%clk 0:00:13]} 56. Rg7 {[%clk 0:00:20]}  Rd7 {[%clk 0:00:13]} 57. Kc2 {[%clk 0:00:19]}  a5 {[%clk 0:00:13]} 58. Kb3 {[%clk 0:00:19]}  Bb6 {[%clk 0:00:11]} 59. Rg8 {[%clk 0:00:19]}  Bc7 {[%clk 0:00:11]} 60. Bf6 {[%clk 0:00:18]}  Rd3+ {[%clk 0:00:09]} 61. Kc2 {[%clk 0:00:17]}  Rf3 {[%clk 0:00:08]} 62. Rg7 {[%clk 0:00:15]}  Rxf4 {[%clk 0:00:09]} 63. Rxf7 {[%clk 0:00:16]}  Rxc4+ {[%clk 0:00:09]} 64. Kb3 {[%clk 0:00:15]}  Rb4+ {[%clk 0:00:09]} 65. Ka3 {[%clk 0:00:15]}  Kb6 {[%clk 0:00:08]} 66. Be7 {[%clk 0:00:12]}  Rf4 {[%clk 0:00:07]} 67. Bf6 {[%clk 0:00:12]}  Rf3+ {[%clk 0:00:07]} 68. Kb2 {[%clk 0:00:11]}  a4 {[%clk 0:00:07]} 69. Bd4+ {[%clk 0:00:12]}  c5 {[%clk 0:00:07]} 70. Rxf3 {[%clk 0:00:13]}  cxd4 {[%clk 0:00:07]} 71. Ka3 {[%clk 0:00:13]}  Kb5 {[%clk 0:00:06]} 72. Rf6 {[%clk 0:00:14]}  Bd6+ {[%clk 0:00:06]} 73. Ka2 {[%clk 0:00:13]}  d3 {[%clk 0:00:05]} 74. Rxe6 {[%clk 0:00:13]}  Bf4 {[%clk 0:00:05]} 75. Rxg6 {[%clk 0:00:12]}  d2 {[%clk 0:00:05]} 76. Rb6+ {[%clk 0:00:11]}  Kxb6 {[%clk 0:00:04]} 77. g6 {[%clk 0:00:11]}  Be5 {[%clk 0:00:04]} 78. g7 {[%clk 0:00:11]}  Bxg7 {[%clk 0:00:04]} 79. Ka3 {[%clk 0:00:12]}  Bf8+ {[%clk 0:00:04]} 80. Kxa4 {[%clk 0:00:13]}  d1=Q# {[%clk 0:00:04]} 0-1